bitfinex/quotes_SOLUSD_20250422
["timestamp","ask_amount","ask_price","bid_price","bid_amount"]
[1745297395758,0.063,138.96,138.95,14.42216157]
[1745297396264,0.063,138.96,138.95,22.88836482]
[1745297398765,0.063,138.96,138.95,14.28]
[1745297399944,0.063,138.96,138.95,22.74620325]
[1745297401673,8.52920325,138.96,138.89,372.66]
[1745297401844,8.46620325,138.94,138.89,304.34]
[1745297402159,8.46620325,138.94,138.89,312.80620325]
[1745297402563,8.46620325,138.94,138.89,304.34]
[1745297402753,8.46620325,138.94,138.89,312.80620325]
[1745297403155,8.46620325,138.93,138.89,261.19]
[1745297403363,8.46620325,138.93,138.9,0.14216157]
[1745297403656,7.19838756,138.92,138.89,14.31]
[1745297403959,7.19838756,138.92,138.9,0.14216157]
[1745297405365,7.19838756,138.92,138.89,22.77620325]
[1745297405366,25.19435646,138.92,138.89,14.31]
[1745297405568,25.19435646,138.92,138.9,8.46620325]
[1745297405870,17.9959689,138.92,138.9,8.46620325]
[1745297411857,17.9959689,138.92,138.89,0.17216157]
[1745297411858,17.9959689,138.92,138.91,8.46620325]
[1745297412060,25.1907298,138.94,138.91,8.46620325]
[1745297413374,25.1907298,138.94,138.9,8.46620325]
[1745297413563,33.65693305,138.94,138.89,8.63836482]
[1745297413764,10.02780325,138.93,138.89,0.17216157]
[1745297414373,25.19435646,138.92,138.89,0.17216157]
[1745297415253,33.66055971,138.92,138.89,0.17216157]
[1745297416887,8.46620325,138.91,138.89,0.03]
[1745297417179,8.46620325,138.9,138.89,0.03]
[1745297417387,8.46620325,138.9,138.89,1e-08]
[1745297418381,8.46620325,138.91,138.89,1e-08]
[1745297418979,8.46620325,138.9,138.89,1e-08]
[1745297419578,8.46620325,138.91,138.89,1e-08]
[1745297421380,7.19942404,138.9,138.89,1e-08]
[1745297426277,25.19435646,138.92,138.89,1e-08]
[1745297426476,8.46620325,138.91,138.89,1e-08]
[1745297428089,7.19942404,138.9,138.89,1e-08]
[1745297431691,98.66562729,138.9,138.89,1e-08]
[1745297432482,105.08552729,138.9,138.89,1e-08]
[1745297435376,96.61932404,138.9,138.89,1e-08]
[1745297435587,105.08552729,138.9,138.89,1e-08]
[1745297443108,90.19942404,138.9,138.89,1e-08]
[1745297447015,7.19890576,138.91,138.89,1e-08]
[1745297448124,15.66510901,138.91,138.89,1e-08]
[1745297452829,7.19890576,138.91,138.89,1e-08]
[1745297453219,15.66510901,138.91,138.89,1e-08]
[1745297457923,8.46620325,138.9,138.89,1e-08]
[1745297458131,7.19890576,138.91,138.89,1e-08]
[1745297458742,8.46620325,138.9,138.89,1e-08]
[1745297459933,15.66562729,138.9,138.89,1e-08]
[1745297469634,41.66562729,138.9,138.89,1e-08]
[1745297471946,33.19942404,138.9,138.89,1e-08]
[1745297472155,41.66562729,138.9,138.89,1e-08]
[1745297472648,33.19942404,138.9,138.89,1e-08]
[1745297472858,41.66562729,138.9,138.89,1e-08]
[1745297474151,40.95735329,138.9,138.89,1e-08]
[1745297474926,40.95735329,138.9,138.84,1e-08]
[1745297475250,8.46620325,138.85,138.84,1e-08]
[1745297475828,8.46620325,138.85,138.83,1e-08]
[1745297476020,8.46620325,138.84,138.83,1e-08]
[1745297476235,15.66873854,138.84,138.83,1e-08]
[1745297480668,7.20253529,138.84,138.83,1e-08]
[1745297484478,7.20253529,138.84,138.83,8.46620326]
[1745297485168,7.20253529,138.84,138.83,1e-08]
[1745297486456,7.20253529,138.84,138.79,0.03]
[1745297486457,26.0,138.81,138.79,0.03]
[1745297486647,34.46620325,138.8,138.74,8.49620325]
[1745297486847,8.46620325,138.81,138.76,8.49620325]
[1745297488163,25.21613832,138.8,138.76,8.49620325]
[1745297488751,25.21613832,138.8,138.76,0.17216157]
[1745297488752,33.68234157,138.8,138.76,0.17216157]
[1745297491042,25.21613832,138.8,138.77,8.60836482]
[1745297492243,18.01152737,138.8,138.77,8.60836482]
[1745297492449,18.01152737,138.8,138.76,0.03]
[1745297492450,26.47773062,138.8,138.76,0.03]
[1745297492660,26.47773062,138.8,138.76,8.49620325]
[1745297494265,8.46620325,138.79,138.76,0.03]
[1745297494455,7.20564922,138.78,138.76,0.03]
[1745297495673,7.20564922,138.78,138.76,1e-08]
[1745297495848,8.46620325,138.77,138.74,0.03]
[1745297496548,7.2066878,138.76,138.74,0.03]
[1745297500481,33.68961056,138.76,138.73,0.03]
[1745297500777,25.22340731,138.76,138.73,0.03]
[1745297503259,26.48292276,138.76,138.73,0.03]
[1745297503572,18.01671951,138.76,138.73,0.03]
[1745297504077,26.48292276,138.76,138.73,0.03]
[1745297504259,8.46620325,138.75,138.7,8.49620325]
[1745297505175,25.22704338,138.74,138.7,0.03]
[1745297505477,25.22704338,138.74,138.7,8.49620325]
[1745297506393,33.69324663,138.74,138.7,0.03]
[1745297506581,25.22704338,138.74,138.7,8.49620325]
[1745297506889,33.69324663,138.74,138.7,0.03]
[1745297512281,25.22704338,138.74,138.7,0.03]
[1745297512684,33.69324663,138.74,138.7,0.03]
[1745297512979,33.69324663,138.74,138.7,8.49620325]
[1745297513783,25.22704338,138.74,138.7,8.49620325]
[1745297513963,25.22704338,138.74,138.71,8.46620325]
[1745297514359,25.22704338,138.74,138.7,8.49620325]
[1745297514777,25.22704338,138.74,138.71,8.46620325]
[1745297515580,25.22704338,138.74,138.7,8.49620325]
[1745297515780,25.22704338,138.74,138.71,8.46620325]
[1745297516162,25.22704338,138.74,138.7,8.63836482]
[1745297517069,25.22704338,138.74,138.72,0.14216157]
[1745297517280,25.22704338,138.74,138.72,8.46620325]
[1745297517666,33.68961056,138.76,138.71,0.14216157]
[1745297517868,33.68961056,138.76,138.71,8.60836482]
[1745297519284,33.68961056,138.76,138.7,0.17216157]
[1745297520085,33.68961056,138.76,138.72,0.14216157]
[1745297520274,33.68961056,138.76,138.72,8.60836482]
[1745297520476,25.22340731,138.76,138.72,8.60836482]
[1745297520671,7.2066878,138.76,138.72,0.14216157]
[1745297520975,7.2066878,138.76,138.75,8.60836482]
[1745297521485,7.2066878,138.76,138.75,0.14216157]
[1745297521667,8.46620325,138.8,138.76,0.14216157]
[1745297521868,8.46620325,138.8,138.76,8.60836482]
[1745297522285,25.21432173,138.81,138.78,0.14216157]
[1745297522489,7.20409192,138.81,138.79,8.46620325]
[1745297522667,7.20409192,138.81,138.8,8.46620325]
[1745297522987,1.5744,138.85,138.8,8.46620325]
[1745297522988,7.20253529,138.84,138.8,8.46620325]
[1745297523287,7.20253529,138.84,138.81,8.60836482]
[1745297523492,7.20253529,138.84,138.81,0.14216157]
[1745297524699,33.67507677,138.84,138.81,0.14216157]
[1745297524883,8.46620325,138.82,138.77,14.28]
[1745297525192,8.46620325,138.81,138.78,0.14216157]
[1745297525891,7.20461095,138.8,138.78,0.14216157]
[1745297526467,15.6708142,138.8,138.76,8.46620325]
[1745297526774,33.68234157,138.8,138.76,0.14216157]
[1745297527266,33.68234157,138.8,138.76,8.60836482]
[1745297527891,25.21613832,138.8,138.76,8.60836482]
[1745297528098,25.21613832,138.8,138.77,8.46620325]
[1745297529093,18.01152737,138.8,138.77,8.46620325]
[1745297529684,8.46620325,138.79,138.74,18.64964886]
[1745297529984,8.46620325,138.79,138.75,8.60836482]
[1745297531495,7.20564922,138.78,138.75,0.14216157]
[1745297531795,7.20564922,138.78,138.75,8.60836482]
[1745297532790,7.20564922,138.78,138.73,14.28]
[1745297532972,7.20564922,138.78,138.75,8.46620325]
[1745297533171,25.21977229,138.78,138.74,0.14216157]
[1745297533469,25.21977229,138.78,138.75,8.46620325]
[1745297534199,25.21977229,138.78,138.73,14.28]
[1745297534513,25.21977229,138.78,138.74,8.46620325]
[1745297535187,25.21977229,138.78,138.74,0.14216157]
[1745297535488,25.21977229,138.78,138.74,8.60836482]
[1745297535674,154.33972168,138.78,138.71,26.0]
[1745297535994,154.33972168,138.78,138.73,8.46620325]
[1745297535995,71.33972168,138.78,138.73,8.46620325]
[1745297536588,26.84527229,138.78,138.74,8.46620325]
[1745297537674,25.21977229,138.78,138.75,8.46620325]
[1745297537876,25.21977229,138.78,138.74,8.46620325]
[1745297538189,51.21977229,138.78,138.74,8.46620325]
[1745297538796,51.21977229,138.78,138.75,0.14216157]
[1745297539292,51.21977229,138.78,138.7,43.22]
[1745297539496,59.68597554,138.78,138.72,8.46620325]
[1745297539699,59.68597554,138.78,138.73,0.14216157]
[1745297539884,8.46620325,138.77,138.73,0.14216157]
[1745297540989,33.68961056,138.76,138.7,0.03]
[1745297541293,25.22340731,138.76,138.71,0.14216157]
[1745297541494,25.22340731,138.76,138.72,8.46620325]
[1745297543397,25.22340731,138.76,138.74,8.46620325]
[1745297544497,18.01671951,138.76,138.73,8.46620325]
[1745297545001,18.01671951,138.76,138.75,8.46620325]
[1745297545189,7.20616848,138.77,138.75,8.60836482]
[1745297546602,25.21988259,138.78,138.75,8.46620325]
[1745297547484,25.21988259,138.78,138.75,0.14216157]
[1745297550813,25.21520998,138.81,138.77,8.60836482]
[1745297550986,25.21520998,138.81,138.8,8.46620325]
[1745297551717,25.21520998,138.81,138.79,8.46620325]
[1745297552514,25.21520998,138.81,138.8,8.46620325]
[1745297552706,18.01111806,138.81,138.8,8.46620325]
[1745297553922,18.01111806,138.81,138.79,8.46620325]
[1745297554712,7.20357297,138.82,138.78,0.14216157]
[1745297554713,7.20357297,138.82,138.81,0.14216157]
[1745297555016,7.20357297,138.82,138.81,8.60836482]
[1745297556938,0.063,138.84,138.81,8.60836482]
[1745297557237,0.063,138.84,138.82,8.46620325]
[1745297557420,0.063,138.84,138.82,0.14216157]
[1745297562032,7.26553529,138.84,138.82,0.14216157]
[1745297563839,33.73807677,138.84,138.79,8.46620325]
[1745297564043,33.73807677,138.84,138.8,0.14216157]
[1745297565316,1.6416,138.83,138.77,14.44]
[1745297565522,8.46620325,138.82,138.78,8.46620325]
[1745297565729,8.46620325,138.82,138.79,0.14216157]
[1745297565926,25.27187352,138.84,138.79,18.64964886]
[1745297566133,25.27187352,138.84,138.82,8.60836482]
[1745297566460,25.27187352,138.84,138.83,8.60836482]
[1745297566821,25.27187352,138.84,138.83,0.14216157]
[1745297567349,0.063,138.84,138.83,0.14216157]
[1745297569444,0.063,138.84,138.79,43.19]
[1745297569740,0.063,138.84,138.81,8.60836482]
[1745297570245,0.063,138.84,138.81,0.14216157]
[1745297570459,0.063,138.84,138.81,8.60836482]
[1745297570945,0.063,138.84,138.81,0.14216157]
[1745297571154,0.063,138.84,138.81,8.60836482]
[1745297571537,0.063,138.84,138.81,0.14216157]
[1745297571745,0.063,138.84,138.81,8.60836482]
[1745297576467,0.063,138.84,138.82,8.46620325]
[1745297577259,0.063,138.84,138.81,8.60836482]
[1745297579859,0.063,138.84,138.81,0.14216157]
[1745297580254,0.063,138.84,138.81,8.60836482]
[1745297582663,0.063,138.84,138.83,8.46620325]
[1745297586544,0.063,138.84,138.83,8.60836482]
[1745297586876,0.063,138.84,138.83,8.46620325]
[1745297587670,0.063,138.84,138.83,8.60836482]
[1745297590647,0.063,138.84,138.83,0.14216157]
[1745297602583,0.063,138.84,138.79,22.80620325]
[1745297602584,8.52920325,138.84,138.79,22.80620325]
[1745297602761,0.063,138.84,138.81,0.14216157]
[1745297604983,25.27187352,138.84,138.81,0.14216157]
[1745297607884,25.27187352,138.84,138.81,8.60836482]
[1745297608485,33.73807677,138.84,138.81,0.14216157]
[1745297608675,25.27187352,138.84,138.8,8.46620325]
[1745297608876,0.063,138.84,138.81,0.14216157]
[1745297609067,0.063,138.84,138.81,8.60836482]
[1745297612286,25.27187352,138.84,138.81,8.60836482]
[1745297613587,18.06933823,138.84,138.81,8.60836482]
[1745297619087,18.06933823,138.84,138.82,8.46620325]
[1745297625071,0.063,138.84,138.83,8.60836482]
[1745297626398,0.063,138.84,138.83,0.14216157]
[1745297627270,0.063,138.84,138.82,8.46620325]
[1745297628596,0.063,138.84,138.8,0.14216157]
[1745297629098,0.063,138.84,138.8,8.60836482]
[1745297630604,25.27187352,138.84,138.8,8.60836482]
[1745297630808,25.27187352,138.84,138.81,8.46620325]
[1745297631206,25.27187352,138.84,138.8,0.14216157]
[1745297631596,25.27187352,138.84,138.81,8.46620325]
[1745297633118,0.063,138.84,138.81,8.46620325]
[1745297636531,0.063,138.84,138.8,8.60836482]
[1745297637719,25.27187352,138.84,138.8,8.60836482]
[1745297638409,25.27187352,138.84,138.81,8.46620325]
[1745297640722,18.06933823,138.84,138.81,8.46620325]
[1745297641018,18.06933823,138.84,138.8,8.60836482]
[1745297641991,18.06933823,138.84,138.81,8.46620325]
[1745297642195,18.06933823,138.84,138.82,0.14216157]
[1745297642402,18.06933823,138.84,138.8,8.46620325]
[1745297642694,18.06933823,138.84,138.81,0.14216157]
[1745297644034,25.27187352,138.84,138.81,0.14216157]
[1745297645214,25.27187352,138.84,138.81,8.60836482]
[1745297648426,18.06933823,138.84,138.81,8.60836482]
[1745297648836,18.06933823,138.84,138.79,61.83964886]
[1745297648837,26.53554148,138.84,138.77,14.28]
[1745297649011,26.53554148,138.84,138.79,8.46620325]
[1745297649410,18.06933823,138.84,138.79,8.46620325]
[1745297649829,18.06933823,138.84,138.8,8.46620325]
[1745297650529,25.27187352,138.84,138.8,8.46620325]
[1745297650834,33.73807677,138.84,138.8,8.46620325]
[1745297651021,25.27187352,138.84,138.82,8.46620325]
[1745297651543,25.27187352,138.84,138.81,8.46620325]
[1745297652217,18.06933823,138.84,138.81,8.46620325]
[1745297653832,0.063,138.84,138.83,8.46620325]
[1745297654333,0.063,138.84,138.83,8.60836482]
[1745297654514,0.063,138.84,138.83,27.25801368]
[1745297660145,0.063,138.84,138.83,70.44801368]
[1745297663120,0.063,138.84,138.83,18.79181043]
[1745297663320,0.063,138.84,138.83,27.25801368]
[1745297671856,0.063,138.84,138.83,70.44801368]
[1745297686665,0.063,138.84,138.83,84.70801368]
[1745297693868,0.063,138.86,138.85,61.98181043]
[1745297694040,0.063,138.88,138.87,87.83964886]
[1745297694246,0.063,138.9,138.87,130.31282668]
[1745297694447,0.063,138.9,138.89,27.25801368]
[1745297699374,0.063,138.9,138.89,70.44801368]
[1745297711606,0.063,138.9,138.89,96.44801368]
[1745297716800,0.063,138.9,138.89,179.04801368]
[1745297729199,0.063,138.92,138.91,87.83964886]
[1745297729405,0.063,138.92,138.91,179.04801368]
[1745297733004,0.063,138.94,138.93,61.98181043]
[1745297733195,0.063,138.94,138.93,70.44801368]
[1745297755334,0.063,138.94,138.93,61.83964886]
[1745297755507,1.6736,138.94,138.93,61.83964886]
[1745297755908,1.6736,138.94,138.93,61.98181043]
[1745297756641,1.6736,138.94,138.93,70.44801368]
[1745297756807,1.6736,138.94,138.93,61.98181043]
[1745297757008,1.6736,138.94,138.93,70.44801368]
[1745297758205,8.87095137,138.94,138.9,57.39]
[1745297758413,6.2553,138.93,138.9,14.24]
[1745297758615,6.2553,138.93,138.9,0.14216157]
[1745297759334,7.19838756,138.92,138.9,0.14216157]
[1745297760640,1.6106,138.91,138.86,57.453]
[1745297760810,1.6106,138.91,138.87,27.11585211]
[1745297761328,1.6106,138.91,138.86,83.453]
[1745297761534,10.07680325,138.91,138.86,91.91920325]
[1745297761829,1.6106,138.91,138.87,0.14216157]
[1745297762211,1.6106,138.91,138.87,8.60836482]
[1745297762936,7.19942404,138.9,138.87,8.60836482]
[1745297763112,1.6106,138.91,138.89,8.60836482]
[1745297763315,8.80953978,138.91,138.89,8.60836482]
[1745297766215,8.80953978,138.91,138.9,0.14216157]
[1745297766613,8.80953978,138.91,138.88,8.46620325]
[1745297766839,8.80953978,138.91,138.89,0.14216157]
[1745297779647,8.80953978,138.91,138.88,8.46620325]
[1745297779830,8.80953978,138.91,138.88,0.14216157]
[1745297780546,8.80953978,138.91,138.87,8.46620325]
[1745297780749,26.80680419,138.91,138.88,0.14216157]
[1745297781763,26.80680419,138.91,138.88,8.60836482]
[1745297783847,26.80680419,138.91,138.88,0.14216157]
[1745297784247,26.80680419,138.91,138.86,0.063]
[1745297784449,8.46620325,138.9,138.86,8.52920325]
[1745297785043,35.27300744,138.91,138.86,8.52920325]
[1745297785855,35.27300744,138.91,138.87,8.46620325]
[1745297786058,26.80680419,138.91,138.88,8.46620325]
[1745297787144,26.80680419,138.91,138.87,8.46620325]
[1745297787662,35.27300744,138.91,138.87,8.46620325]
[1745297787843,35.27300744,138.91,138.86,8.52920325]
[1745297788045,35.27300744,138.91,138.87,0.14216157]
[1745297788365,35.27300744,138.91,138.87,8.60836482]
[1745297788664,35.27300744,138.91,138.87,8.46620325]
[1745297789961,8.46620325,138.9,138.86,0.063]
[1745297790461,35.27300744,138.91,138.86,8.52920325]
[1745297791749,8.46620325,138.9,138.86,0.063]
[1745297792157,7.20046082,138.88,138.86,0.063]
[1745297794761,15.66666407,138.88,138.86,0.063]
[1745297795757,9.99400325,138.87,138.86,0.063]
[1745297796549,17.19498258,138.87,138.86,0.063]
[1745297797069,17.19498258,138.87,138.86,1e-08]
[1745297797755,17.19498258,138.87,138.85,1e-08]
[1745297797954,8.46620325,138.86,138.85,1e-08]
[1745297798649,8.46620325,138.86,138.82,0.03]
[1745297798650,26.0,138.83,138.81,0.063]
[1745297798851,26.0,138.83,138.78,0.063]
[1745297799242,8.46620325,138.81,138.78,0.063]
[1745297799444,8.46620325,138.82,138.78,0.063]
[1745297799642,8.46620325,138.81,138.8,0.03]
[1745297799848,110.5278,138.85,138.8,0.03]
[1745297800259,110.5278,138.85,138.8,8.49620325]
[1745297800449,8.46620325,138.84,138.8,8.49620325]
[1745297800778,7.20305409,138.83,138.8,8.49620325]
[1745297802256,7.20305409,138.83,138.8,0.03]
[1745297802457,7.20305409,138.83,138.81,8.46620325]
[1745297803479,7.20253529,138.84,138.8,8.49620325]
[1745297803653,15.66873854,138.84,138.8,8.49620325]
[1745297804278,7.20253529,138.84,138.8,8.49620325]
[1745297804876,15.66873854,138.84,138.8,8.49620325]
[1745297805975,15.66873854,138.84,138.8,0.03]
[1745297807275,8.46620325,138.83,138.8,0.03]
[1745297807466,8.46620325,138.82,138.8,0.03]
[1745297808075,7.20409192,138.81,138.8,0.03]
[1745297809380,7.20357297,138.82,138.8,0.03]
[1745297810981,15.66977622,138.82,138.8,0.03]
[1745297811284,8.46620325,138.81,138.8,0.03]
[1745297812596,15.67029517,138.81,138.8,0.03]
[1745297812887,23.81129517,138.81,138.8,0.03]
[1745297813089,23.81129517,138.81,138.8,1e-08]
[1745297813275,49.81129517,138.81,138.8,1e-08]
[1745297817573,41.34509192,138.81,138.8,1e-08]
[1745297817965,34.81069192,138.81,138.8,1e-08]
[1745297818292,43.27689517,138.81,138.8,1e-08]
[1745297818489,34.81069192,138.81,138.8,1e-08]
[1745297818672,43.27689517,138.81,138.8,1e-08]
[1745297825276,126.27689517,138.81,138.8,1e-08]
[1745297832583,26.0,138.79,138.78,1e-08]
[1745297832892,34.46620325,138.79,138.78,1e-08]
[1745297834405,41.6713333,138.79,138.78,1e-08]
[1745297837803,41.6713333,138.79,138.77,0.063]
[1745297837804,83.0,138.78,138.77,1e-08]
[1745297837987,91.46620325,138.78,138.77,1e-08]
[1745297838894,98.67185247,138.78,138.77,1e-08]
[1745297839202,34.32150133,138.78,138.74,1e-08]
[1745297839410,26.0,138.7,138.59,0.04]
[1745297839583,1.0,138.72,138.63,8.46620325]
[1745297839584,40.26,138.69,138.63,8.46620325]
[1745297839785,8.46620325,138.68,138.63,8.46620325]
[1745297840390,8.46620325,138.67,138.6,26.0]
[1745297840594,40.26,138.69,138.63,8.60836482]
[1745297840793,8.46620325,138.67,138.63,0.14216157]
[1745297841102,15.67756836,138.67,138.62,8.46620325]
[1745297841313,7.21136511,138.67,138.61,18.64964886]
[1745297841487,7.21136511,138.67,138.63,8.46620325]
[1745297841887,7.21136511,138.67,138.65,8.46620325]
[1745297842509,7.20928555,138.71,138.66,8.49620325]
[1745297842821,33.69870269,138.71,138.67,8.46620325]
[1745297843181,8.46620325,138.7,138.66,0.03]
[1745297843588,8.46620325,138.7,138.66,8.49620325]
[1745297845215,7.21032518,138.69,138.66,0.03]
[1745297845809,7.21032518,138.69,138.66,8.49620325]
[1745297846801,7.21032518,138.69,138.66,0.03]
[1745297848419,8.46620325,138.69,138.66,0.03]
[1745297850523,8.46620325,138.68,138.66,0.03]
[1745297850712,8.46620325,138.69,138.66,0.03]
[1745297851621,7.21084511,138.68,138.66,0.03]
[1745297855727,25.23557564,138.7,138.66,0.03]
[1745297856024,33.70177889,138.7,138.66,0.03]
[1745297856914,8.46620325,138.69,138.66,0.03]
[1745297858023,7.21084511,138.68,138.66,0.03]
[1745297860406,15.67704836,138.68,138.66,0.03]
[1745297866338,7.21084511,138.68,138.66,0.03]
[1745297866642,15.67704836,138.68,138.66,0.03]
[1745297866951,7.21084511,138.68,138.66,0.03]
[1745297867536,8.46620325,138.67,138.66,0.03]
[1745297867714,8.46620325,138.67,138.6,0.03]
[1745297867921,8.46620325,138.66,138.61,8.46620325]
[1745297868639,7.21240533,138.65,138.62,8.46620325]
[1745297868849,7.21240533,138.65,138.63,8.46620325]
[1745297869149,7.21240533,138.65,138.61,0.14216157]
[1745297869349,7.21240533,138.65,138.62,8.46620325]
[1745297870222,25.24159814,138.66,138.62,8.46620325]
[1745297870535,33.70780139,138.66,138.62,8.46620325]
[1745297870745,25.24159814,138.66,138.62,8.46620325]
[1745297872929,33.70780139,138.66,138.61,8.46620325]
[1745297873244,25.24159814,138.66,138.62,8.46620325]
[1745297874947,25.24159814,138.66,138.6,0.17216157]
[1745297875140,8.46620325,138.66,138.61,8.46620325]
[1745297875345,144.29218343,138.68,138.6,8.63836482]
[1745297875346,8.46620325,138.65,138.6,8.63836482]
[1745297876630,8.46620325,138.66,138.61,8.46620325]
[1745297877032,7.21240533,138.65,138.61,8.46620325]
[1745297877344,25.24341867,138.65,138.61,8.46620325]
[1745297877853,33.70962192,138.65,138.6,0.17216157]
[1745297878225,33.70962192,138.65,138.61,8.46620325]
[1745297878923,33.70962192,138.65,138.6,0.17216157]
[1745297879125,33.70962192,138.65,138.61,8.46620325]
[1745297880332,9.98870325,138.64,138.6,0.17216157]
[1745297880553,1.5225,138.64,138.6,8.63836482]
[1745297880745,39.72512192,138.65,138.6,8.63836482]
[1745297880947,33.70962192,138.65,138.6,8.63836482]
[1745297882448,8.46620325,138.64,138.6,0.03]
[1745297882658,33.70962192,138.65,138.6,8.49620325]
[1745297882866,25.24341867,138.65,138.61,8.60836482]
[1745297884656,33.70962192,138.65,138.61,0.14216157]
[1745297884956,33.70962192,138.65,138.61,8.60836482]
[1745297885960,25.24341867,138.65,138.62,8.46620325]
[1745297886464,25.24341867,138.65,138.61,8.46620325]
[1745297888360,7.21240533,138.65,138.62,0.14216157]
[1745297888676,7.21240533,138.65,138.62,8.60836482]
[1745297889245,15.67860858,138.65,138.62,0.14216157]
[1745297889458,7.21240533,138.65,138.62,0.14216157]
[1745297889657,7.21240533,138.65,138.6,0.03]
[1745297889860,8.46620325,138.63,138.6,0.03]
[1745297890048,8.46620325,138.64,138.6,0.17216157]
[1745297890468,33.71326376,138.63,138.6,0.03]
[1745297890853,25.24706051,138.63,138.6,0.03]
[1745297892367,7.21344586,138.63,138.6,0.17216157]
[1745297892677,7.21292556,138.64,138.6,8.49620325]
[1745297892981,33.71144271,138.64,138.6,0.03]
[1745297894261,8.46620325,138.63,138.6,0.03]
[1745297894465,8.46620325,138.61,138.6,0.03]
[1745297894985,8.46620325,138.62,138.6,0.03]
[1745297895160,8.46620325,138.61,138.6,0.03]
[1745297895485,8.46620325,138.62,138.6,0.03]
[1745297896579,15.68068993,138.61,138.6,0.03]
[1745297897484,7.21448668,138.61,138.6,0.03]
[1745297898695,7.21396623,138.62,138.6,0.03]
[1745297899396,15.68016948,138.62,138.6,0.03]
[1745297900476,7.21396623,138.62,138.6,0.03]
[1745297900871,15.68016948,138.62,138.6,0.03]
[1745297903187,8.46620325,138.61,138.6,0.03]
[1745297903703,15.68016948,138.62,138.6,0.03]
[1745297905496,26.0,138.61,138.6,0.03]
[1745297905878,25.24706051,138.63,138.6,0.03]
[1745297906099,8.46620325,138.62,138.6,0.03]
[1745297906980,7.21448668,138.61,138.6,0.03]
[1745297911304,15.68068993,138.61,138.6,0.03]
[1745297913527,41.68068993,138.61,138.59,0.04]
[1745297913680,8.46620325,138.6,138.59,0.04]
[1745297914001,8.84858668,138.61,138.59,0.04]
[1745297914190,7.21448668,138.61,138.59,0.04]
[1745297914398,15.68068993,138.61,138.59,0.04]
[1745297914595,6.4141,138.64,138.61,0.14216157]
[1745297914596,7.21292556,138.64,138.61,0.14216157]
[1745297914914,8.46620325,138.65,138.59,0.04]
[1745297915102,1.6341,138.67,138.6,8.46620325]
[1745297915400,1.6341,138.67,138.61,0.14216157]
[1745297915401,8.46620325,138.65,138.61,0.14216157]
[1745297915574,1.6341,138.67,138.62,8.46620325]
[1745297915775,7.21084511,138.68,138.64,8.46620325]
[1745297915993,15.67704836,138.68,138.63,8.60836482]
[1745297916200,7.21084511,138.68,138.63,0.14216157]
[1745297916392,7.20980533,138.7,138.66,8.60836482]
[1745297916788,8.46620325,138.69,138.66,0.14216157]
[1745297917095,8.46620325,138.68,138.64,0.14216157]
[1745297917314,8.46620325,138.66,138.6,18.64964886]
[1745297917595,8.46620325,138.67,138.63,0.14216157]
[1745297917788,8.46620325,138.66,138.63,0.14216157]
[1745297918926,15.67860858,138.65,138.62,0.14216157]
[1745297920110,33.70962192,138.65,138.61,0.14216157]
[1745297920407,33.70962192,138.65,138.6,8.46620325]
[1745297921207,33.70962192,138.65,138.6,0.14216157]
[1745297921389,33.70962192,138.65,138.6,8.60836482]
[1745297921890,33.70962192,138.65,138.6,8.46620325]
[1745297923007,33.70962192,138.65,138.6,0.14216157]
[1745297923008,8.46620325,138.64,138.6,0.14216157]
[1745297924204,33.70962192,138.65,138.6,8.60836482]
[1745297924403,8.46620325,138.64,138.6,0.14216157]
[1745297924605,25.24341867,138.65,138.6,8.60836482]
[1745297924814,33.70962192,138.65,138.6,8.60836482]
[1745297925516,8.46620325,138.64,138.6,0.14216157]
[1745297925892,8.46620325,138.63,138.6,0.14216157]
[1745297926295,8.46620325,138.63,138.59,0.04]
[1745297926525,25.24341867,138.65,138.59,0.04]
[1745297926526,8.46620325,138.62,138.59,0.04]
[1745297927221,7.21448668,138.61,138.59,0.04]
[1745297930913,33.71508507,138.62,138.59,0.04]
[1745297931909,8.46620325,138.61,138.59,0.04]
[1745297932214,8.46620325,138.6,138.59,0.04]
[1745297932707,8.46620325,138.6,138.59,1e-08]
[1745297932889,15.68121046,138.6,138.59,1e-08]
[1745297935514,7.21500721,138.6,138.59,1e-08]
[1745297935694,15.68121046,138.6,138.59,1e-08]
[1745297938314,7.21500721,138.6,138.59,1e-08]
[1745297939323,7.21448668,138.61,138.59,1e-08]
[1745297940204,7.21448668,138.61,138.59,0.14216158]
[1745297940404,7.21448668,138.61,138.59,8.46620326]